bitfinex-derivatives/quotes_ETHF0:USTF0_20251211
["timestamp","ask_amount","ask_price","bid_price","bid_amount"]
[1765466596777,2.36592808,3181.0,3180.9,0.15717]
[1765466597378,3.2078,3181.4,3180.3,3.2078]
[1765466597379,5.57372808,3181.4,3181.2,0.15715]
[1765466598880,5.3489,3181.3,3181.2,0.15715]
[1765466599881,3.2078,3181.8,3181.7,2.89993]
[1765466600084,3.2078,3181.8,3181.7,5.59273]
[1765466600278,3.2078,3182.2,3182.0,0.15711]
[1765466600676,5.17211024,3182.5,3182.4,0.1571]
[1765466600980,0.00471024,3182.5,3182.4,0.1571]
[1765466601775,0.00471024,3182.5,3182.4,3.3649]
[1765466602981,0.00471024,3182.5,3182.4,9.3649]
[1765466603480,3.2078,3183.5,3183.4,0.15705]
[1765466603984,5.57372808,3183.5,3183.4,0.15705]
[1765466604374,5.57771738,3183.5,3183.4,0.15961705]
[1765466605887,0.0039893,3183.5,3183.4,0.15961705]
[1765466606380,0.0039893,3183.5,3183.4,5.59521705]
[1765466607689,0.00125782,3183.5,3183.4,5.59521705]
[1765466609387,3.2078,3184.4,3183.7,5.4356]
[1765466609582,3.2078,3184.4,3183.8,3.2078]
[1765466609885,3.2078,3184.4,3184.3,2.8998]
[1765466610074,3.2078,3184.4,3184.3,7.2457]
[1765466610281,0.00348737,3184.4,3183.8,3.2078]
[1765466610484,2.6341,3184.3,3183.8,3.2078]
[1765466610689,0.00348737,3184.4,3184.3,0.157]
[1765466611283,0.00348737,3184.4,3184.3,7.2457]
[1765466611487,0.00348737,3184.4,3184.3,5.5926]
[1765466612780,0.00348737,3184.4,3184.3,7.2457]
[1765466614689,3.2078,3185.6,3185.3,0.15695]
[1765466615496,5.1674,3185.4,3185.3,0.15695]
[1765466615689,5.17112767,3185.4,3185.3,0.15695]
[1765466615887,0.00372767,3185.4,3185.3,0.15695]
[1765466616088,3.21152767,3185.4,3185.3,2.89975]
[1765466616884,9.91932767,3185.4,3185.3,0.15695]
[1765466618593,9.91932767,3185.4,3185.3,5.59255]
[1765466618594,0.00372767,3185.4,3185.3,5.59255]
[1765466618981,4.7482,3186.4,3186.3,0.1569]
[1765466619182,9.9156,3186.4,3186.3,0.1569]
[1765466620095,9.91892407,3186.4,3186.3,0.15972085]
[1765466620892,8.37852407,3186.4,3186.3,0.15972085]
[1765466621388,5.17072407,3186.4,3186.3,0.15972085]
[1765466621587,5.17072407,3186.4,3186.3,8.80312085]
[1765466621588,0.00332407,3186.4,3186.3,8.80312085]
[1765466621995,3.679,3187.9,3187.2,2.7428]
[1765466622189,5.1674,3187.8,3187.7,0.15684]
[1765466622388,3.679,3187.9,3187.7,2.89964]
[1765466622790,2.6341,3187.8,3187.7,0.15684]
[1765466622999,2.63740501,3187.8,3187.7,0.15684]
[1765466624090,5.17070501,3187.8,3187.7,0.15684]
[1765466625391,0.00330501,3187.8,3187.7,5.59244]
[1765466625690,0.00330501,3187.8,3187.7,8.80024]
[1765466626693,0.00330501,3187.8,3187.7,5.59244]
[1765466626892,0.00330501,3187.8,3187.7,2.89964]
[1765466627096,0.00330501,3187.8,3187.7,5.59244]
[1765466627699,0.00330501,3187.8,3187.7,8.80024]
[1765466631299,6.40440501,3187.8,3187.7,3.36464]
[1765466631496,6.40440501,3187.8,3187.7,0.15684]
[1765466632195,2.45630501,3187.8,3187.7,0.15684]
[1765466632393,0.00330501,3187.8,3187.7,8.09374]
[1765466632602,4.7482,3189.0,3188.0,4.7291]
[1765466632796,4.7482,3189.0,3188.2,3.2078]
[1765466633602,4.9637,3188.5,3188.4,0.1568]
[1765466633905,2.453,3188.5,3188.4,2.491]
[1765466634106,4.9637,3188.5,3188.4,0.1568]
[1765466634798,3.2078,3188.6,3188.5,4.8859]
[1765466635394,2.453,3188.6,3188.5,2.491]
[1765466635595,0.00311506,3188.9,3188.8,4.88588]
[1765466635800,0.00311506,3188.9,3188.8,4.88904147]
[1765466637902,3.2078,3189.8,3189.7,2.3342]
[1765466638207,8.1715,3189.8,3189.7,0.15674]
[1765466638903,8.17411844,3189.8,3189.7,0.15674]
[1765466639105,3.21041844,3189.8,3189.7,4.88584]
[1765466639308,0.00261844,3189.8,3189.7,8.09364]
[1765466639503,3.2078,3190.6,3190.5,4.8858]
[1765466639707,6.375,3190.9,3190.7,0.15669]
[1765466640009,2.633895,3191.6,3190.7,0.15669]
[1765466640204,1.4374,3192.0,3191.3,2.3342]
[1765466640205,4.9637,3191.4,3191.3,2.3342]
[1765466640508,2.45673837,3191.4,3191.3,0.16044601]
[1765466640704,4.96743837,3191.4,3191.3,0.16044601]
[1765466641097,6.40483837,3191.4,3191.3,0.16044601]
[1765466641298,6.40483837,3191.4,3191.3,0.00378601]
[1765466641700,6.4011,3190.8,3190.7,0.15669]
[1765466642101,2.453,3190.8,3190.7,0.15669]
[1765466642303,4.9637,3190.8,3190.7,0.15669]
[1765466642601,6.4011,3190.8,3190.1,3.2078]
[1765466642805,6.40577695,3190.8,3190.1,3.21539536]
[1765466643108,4.9637,3190.2,3190.1,3.37210536]
[1765466643601,1.44207695,3190.8,3190.1,5.70630536]
[1765466643803,1.44207695,3190.8,3190.2,0.15671]
[1765466643998,0.00467695,3190.8,3190.7,4.7291]
[1765466644204,0.00467695,3190.8,3190.7,2.49089]
[1765466644398,0.00467695,3190.8,3190.7,4.88579]
[1765466644602,0.00467695,3190.8,3190.7,8.09359]
[1765466646603,0.00373837,3191.4,3191.3,2.49086]
[1765466646808,2.45673837,3191.4,3191.3,0.15666]
[1765466647110,9.61263837,3191.4,3191.3,0.15666]
[1765466647311,6.40483837,3191.4,3191.3,0.15666]
[1765466649002,6.40483837,3191.4,3191.3,8.09356]
[1765466649003,0.00373837,3191.4,3191.3,8.09356]
[1765466649405,2.45673837,3191.4,3191.3,5.69866]
[1765466649605,2.45673837,3191.4,3191.3,3.36446]
[1765466650111,4.96743837,3191.4,3191.3,3.36446]
[1765466650710,6.35883837,3191.4,3191.3,3.36446]
[1765466651008,0.00373837,3191.4,3191.3,8.09356]
[1765466651215,3.2078,3192.3,3192.2,4.88571]
[1765466651409,3.77779699,3193.7,3193.0,0.15657]
[1765466651712,4.9637,3193.3,3193.2,0.15656]
[1765466651915,2.453,3193.3,3193.2,0.15656]
[1765466652110,4.96725612,3193.3,3193.2,0.16016299]
[1765466652310,3.44592151,3194.3,3193.9,0.15653]
[1765466652513,4.9637,3194.0,3193.9,0.15653]
[1765466652711,2.453,3194.0,3193.9,0.15653]
[1765466653019,4.7502,3194.0,3193.9,0.15653]
[1765466653408,4.4235,3193.9,3193.8,0.00470255]
[1765466653613,7.6313,3193.9,3193.8,0.00470255]
[1765466653815,4.4235,3193.3,3193.2,0.16016299]
[1765466654017,7.6313,3193.3,3193.2,0.00360299]
[1765466654510,3.2078,3193.3,3193.2,4.53250299]
[1765466654814,2.1263,3193.5,3193.4,0.15655]
[1765466655009,3.2078,3193.9,3193.8,0.15654]
[1765466655215,3.2078,3193.9,3193.8,2.35344]
[1765466655818,3.2078,3193.9,3193.8,4.68544]
[1765466656014,0.00347929,3194.0,3193.9,4.68543]
[1765466659313,0.00347929,3194.0,3193.9,10.68543]
[1765466659918,0.00347929,3194.0,3193.9,4.68543]
[1765466660318,0.23812151,3194.3,3193.8,1.3711]
[1765466660319,0.14418064,3194.3,3194.2,4.49582]
[1765466660523,3.2078,3195.3,3194.2,3.2078]
[1765466660717,3.2078,3195.3,3194.8,0.15648]
[1765466660915,3.2078,3195.3,3195.2,4.3393]
[1765466661118,3.2078,3195.3,3195.2,4.49577]
[1765466661318,3.21184398,3195.3,3195.2,2.37907]
[1765466661524,7.76004398,3195.3,3194.9,0.00469476]
[1765466661821,0.63,3193.8,3192.6,1.3711]
[1765466662121,0.63,3193.8,3192.0,1.3711]
[1765466662122,3.2078,3193.0,3192.2,0.15661]
[1765466662316,3.2078,3192.6,3192.3,0.15661]
[1765466662519,5.841695,3192.6,3192.3,0.15661]
[1765466662820,5.84514595,3192.6,3192.3,0.15953785]
[1765466663617,3.21125095,3192.6,3192.4,0.1566]
[1765466663821,2.88124387,3192.6,3192.5,0.1566]
[1765466664124,0.00466877,3192.8,3192.7,1.52769]
[1765466664313,3.2078,3193.3,3193.2,0.15657]
[1765466664517,3.2078,3193.7,3193.6,0.15655]
[1765466664923,3.21129943,3193.7,3193.6,0.15655]
[1765466665328,0.00349943,3193.7,3193.6,0.15655]
[1765466665515,3.2078,3194.2,3194.1,1.52762]
[1765466665914,3.2078,3194.8,3194.7,0.15649]
[1765466666220,2.633895,3195.9,3195.2,0.15647]
[1765466666526,3.2078,3195.7,3195.3,0.15646]
[1765466666722,3.21051208,3195.7,3195.3,0.15978689]
[1765466667720,3.21051208,3195.7,3195.6,0.15645]
[1765466667922,0.00271208,3195.7,3195.6,0.15645]
[1765466669021,3.2078,3196.6,3196.0,1.3711]
[1765466669221,6.66140449,3198.9,3196.0,1.3711]
[1765466669222,3.2078,3198.3,3198.1,0.15632]
[1765466669430,3.88581929,3199.7,3198.2,0.15632]
[1765466669431,2.633895,3198.9,3198.2,0.15632]
[1765466669621,1.1421,3200.0,3197.9,0.00469476]
[1765466669822,2.633895,3200.1,3198.9,0.15629]
[1765466670024,2.9372824,3200.8,3198.9,0.15629]
[1765466670226,2.633895,3199.4,3198.9,0.15922651]
[1765466670423,1.281,3200.0,3196.7,0.597]
[1765466670828,1.281,3200.0,3198.5,0.1563]
[1765466671032,3.78778576,3199.5,3198.5,0.1563]
[1765466671228,0.00469476,3199.3,3198.7,0.00469476]
[1765466671431,0.00469476,3199.3,3198.7,0.00794102]
[1765466672229,0.00469476,3199.3,3198.9,0.15629]
[1765466672932,0.00469476,3199.3,3198.9,3.36409]
[1765466673234,0.00469476,3199.3,3198.9,0.15629]
[1765466673639,3.2078,3200.2,3199.1,3.36408]
[1765466673932,3.78778576,3200.3,3199.2,3.2078]
[1765466674131,3.78778576,3200.3,3199.4,3.2078]
[1765466674335,3.2078,3200.1,3199.1,0.15628]
[1765466674836,3.2078,3199.6,3198.7,0.00794102]
[1765466675032,3.2078,3199.6,3198.8,3.2078]
[1765466675426,3.2078,3199.2,3198.8,0.15629]
[1765466675639,3.2078,3199.4,3198.7,0.00794102]
[1765466675837,3.10858497,3200.6,3199.8,0.15624]
[1765466676034,3.2078,3200.7,3200.0,3.2078]
[1765466676234,3.10858497,3200.6,3199.6,3.2078]
[1765466676838,3.2078,3200.2,3199.5,1.3711]
[1765466677339,3.10858497,3200.0,3198.9,0.15628]
[1765466677544,3.10858497,3200.0,3199.3,3.2078]
[1765466677742,3.2078,3199.6,3199.0,3.36408]
[1765466677941,3.2078,3200.0,3199.4,3.2078]
[1765466678151,3.2078,3200.0,3199.6,0.15625]
[1765466678641,3.2078,3200.6,3200.0,1.3711]
[1765466678849,0.0022976,3200.8,3200.4,3.2078]
[1765466679042,0.0022976,3200.8,3200.7,3.2078]
[1765466679237,0.0022976,3200.8,3200.4,0.16089706]
[1765466679538,3.10858497,3201.3,3200.7,6.59613965]
[1765466679738,3.10858497,3201.3,3200.5,3.25854992]
[1765466679942,3.10858497,3200.6,3200.4,0.00468706]
[1765466680141,3.2078,3200.5,3200.4,0.16089706]
[1765466680341,1.51704817,3202.4,3200.4,0.00468706]
[1765466680342,3.2078,3201.5,3200.4,0.00468706]
[1765466680542,3.2078,3201.8,3200.8,1.3711]
[1765466680743,0.23604817,3202.4,3202.2,0.15612]
[1765466680948,3.34463314,3202.4,3201.8,3.2078]
[1765466681138,3.2078,3202.0,3201.6,1.3711]
[1765466681637,3.10858497,3201.8,3201.6,0.00332033]
[1765466681838,3.10858497,3201.8,3200.8,1.3711]
[1765466682038,3.2078,3201.5,3200.8,1.3711]
[1765466682244,3.2078,3201.0,3200.8,1.3711]
[1765466682443,3.10858497,3201.7,3200.8,1.3711]
[1765466682642,0.00385125,3202.0,3201.9,0.15614]
[1765466682841,0.00385125,3202.0,3201.9,0.16017511]
[1765466684044,0.23604817,3202.4,3202.3,0.15612]
[1765466685251,0.23997653,3202.4,3202.3,0.15612]
[1765466685954,0.23997653,3202.4,3202.0,0.00468706]
[1765466685955,3.3485615,3202.4,3202.0,0.00468706]
[1765466686346,3.2078,3202.1,3202.0,0.16081706]
[1765466686548,3.3485615,3202.4,3202.2,0.15612]
[1765466687047,3.44777653,3202.4,3202.3,0.15612]
[1765466687442,3.44777653,3202.4,3202.0,0.00468706]
[1765466687948,3.44777653,3202.4,3202.3,0.15612]
[1765466688251,3.2078,3202.8,3202.7,0.1561]
[1765466688458,3.2078,3203.2,3203.1,0.15608]
[1765466689153,3.2078,3203.2,3202.4,1.3711]
[1765466689347,3.21105908,3203.2,3202.4,1.3711]
[1765466689553,3.21105908,3203.2,3203.1,0.15608]
[1765466689752,3.21105908,3203.2,3202.4,1.52721]
[1765466689951,3.10858497,3202.8,3202.4,0.15611]
[1765466690155,3.10858497,3202.8,3202.5,0.15611]
[1765466690453,3.2078,3203.0,3202.7,0.1561]
[1765466690758,0.00325908,3203.2,3203.1,0.15608]
[1765466691754,3.11184405,3203.2,3202.4,4.96151]
[1765466691952,3.11184405,3203.2,3202.7,0.1561]
[1765466692153,3.11184405,3203.2,3202.8,0.1561]
[1765466692554,3.2078,3203.1,3203.0,0.15609]
[1765466692756,5.54720225,3203.1,3202.4,1.5976]
[1765466693155,2.33940225,3203.1,3202.7,3.2078]
[1765466693454,2.33940225,3203.1,3202.4,1.5976]
[1765466693455,0.00325908,3203.2,3202.4,1.5976]
[1765466693660,0.00325908,3203.2,3203.1,0.15608]
[1765466694161,0.00325908,3203.2,3202.4,1.5976]
[1765466694864,0.00325908,3203.2,3203.1,0.15608]
[1765466695053,2.34266133,3203.2,3203.1,0.15608]
[1765466695355,5.55046133,3203.2,3203.1,0.15608]
[1765466696462,5.55046133,3203.2,3202.4,1.5976]
[1765466696760,5.55046133,3203.2,3202.8,0.15609]
[1765466697458,5.55046133,3203.2,3203.1,0.15608]
[1765466697459,3.21105908,3203.2,3203.1,0.15608]
[1765466698154,0.00325908,3203.2,3203.1,0.15608]
[1765466701963,0.00325908,3203.2,3203.1,5.70868]
[1765466702163,0.00325908,3203.2,3203.1,8.91648]
[1765466702359,3.2078,3204.6,3203.2,1.5976]
[1765466702561,1.281,3207.4,3204.6,1.5976]
[1765466702562,3.2078,3205.4,3204.6,1.5976]
[1765466702859,5.54720225,3205.4,3205.3,0.15597]
[1765466703464,5.54979732,3205.4,3205.3,0.1592344]
[1765466703859,3.21039507,3205.4,3205.3,0.1592344]
[1765466704057,3.03168115,3205.4,3205.3,7.7568344]
[1765466704360,3.2078,3206.9,3206.4,1.5976]
[1765466704559,3.2078,3206.9,3206.4,1.75352]
[1765466704968,3.2078,3207.3,3206.5,0.15592]
[1765466705162,3.2078,3207.3,3207.2,1.75348]
[1765466705466,3.2078,3208.5,3208.4,0.15582]
[1765466705669,2.33940225,3210.1,3208.8,1.5976]
[1765466705869,2.33940225,3210.0,3208.8,1.5976]
[1765466706259,1.586,3211.1,3208.9,3.32868838]
[1765466706260,3.2078,3209.4,3208.9,3.32868838]
[1765466706470,0.00243269,3209.4,3208.9,3.33198901]
[1765466706660,0.00243269,3209.4,3208.9,0.00330063]
[1765466706661,3.09281836,3209.4,3208.9,0.00330063]
[1765466706970,3.09281836,3209.4,3208.1,0.00467924]
[1765466706971,3.2078,3209.0,3208.1,0.00467924]
[1765466707267,3.2078,3208.5,3208.1,0.00467924]
[1765466707467,3.2078,3208.5,3207.2,4.8054]
[1765466707674,3.2078,3207.8,3207.2,1.5976]
[1765466707869,3.2078,3208.0,3207.4,3.2078]
[1765466708172,3.2078,3208.1,3207.2,1.60077822]
[1765466708367,3.2078,3207.3,3207.2,0.00317822]
[1765466708670,3.2078,3207.4,3207.2,0.00317822]
[1765466708977,3.2078,3207.4,3206.9,0.00467924]
[1765466709274,3.2078,3207.4,3205.6,0.15596]
[1765466709275,3.2078,3207.0,3205.6,0.15596]
[1765466709475,3.2078,3206.2,3205.6,0.15596]
[1765466709670,3.2078,3206.8,3205.6,0.15596]
[1765466709869,0.00402723,3206.8,3206.1,0.15593]
[1765466710175,0.00402723,3206.8,3206.1,0.16060924]
[1765466710373,0.00402723,3206.8,3206.2,3.38003676]
[1765466710570,0.00402723,3206.8,3206.2,3.2078]
[1765466710773,0.00402723,3206.8,3206.1,0.00467924]
[1765466710977,3.2078,3206.5,3205.8,1.59987519]
[1765466711171,3.2078,3206.0,3205.8,0.00227519]
[1765466711473,3.2078,3206.5,3205.8,1.75582519]
[1765466712178,3.2078,3206.5,3205.8,1.76050443]
[1765466712369,0.00402723,3206.8,3205.8,1.76050443]
[1765466712565,3.2078,3206.2,3205.8,1.76050443]
[1765466712770,3.2078,3206.2,3205.8,0.16290443]
[1765466712966,3.2078,3206.2,3205.3,3.2078]
[1765466713170,3.2078,3205.7,3205.3,3.2078]
[1765466713571,3.2078,3205.7,3205.3,3.36377]
[1765466713978,3.2078,3205.7,3205.3,3.36686034]
[1765466714276,3.2078,3205.7,3205.5,0.15596]
[1765466714476,0.00467924,3205.8,3205.5,0.15596]
[1765466715671,0.00467924,3205.8,3205.7,3.36375]
[1765466715868,0.00467924,3205.8,3205.7,0.15595]
[1765466716078,0.00467924,3205.8,3205.3,3.21089034]
[1765466716679,3.21247924,3205.8,3205.7,0.15595]
[1765466716873,3.21247924,3205.8,3205.2,0.00467924]
[1765466717174,3.2078,3205.3,3204.0,4.8054]
[1765466717379,3.2078,3204.7,3204.0,3.36384]
[1765466717679,3.2078,3204.7,3204.0,4.86454]
[1765466717881,3.2078,3204.7,3204.0,4.8672806]
[1765466718182,3.2078,3204.7,3204.0,4.87195984]
[1765466718380,3.2078,3204.3,3204.0,0.16345984]
[1765466718576,3.21177474,3204.3,3203.7,0.15605]
[1765466718885,3.21177474,3204.3,3203.5,3.2078]
[1765466719576,0.00467924,3204.2,3203.6,0.00317123]
[1765466719777,3.2078,3203.9,3203.5,0.00297]
[1765466720279,3.2078,3203.9,3203.7,0.15605]
[1765466720582,0.00467924,3204.2,3203.5,0.00297]
[1765466720782,0.00467924,3204.2,3203.8,3.2078]
[1765466721285,0.00467924,3204.2,3203.5,0.00297]
[1765466721580,0.00467924,3204.2,3204.1,0.15603]
[1765466721980,3.2078,3205.1,3204.0,1.4304]
[1765466722174,3.2078,3205.5,3205.4,0.15597]
[1765466722378,3.2078,3206.0,3205.6,0.15596]
[1765466723079,3.21165983,3206.0,3205.6,0.15596]
[1765466723377,6.0,3205.9,3205.1,0.15598]
[1765466723581,3.2078,3205.5,3205.1,0.15598]
[1765466723777,3.2078,3205.5,3204.6,3.2078]
[1765466724077,3.2078,3204.7,3204.3,0.15602]
[1765466725176,3.2078,3204.7,3204.4,0.15602]
[1765466725482,0.00467924,3204.9,3204.5,0.15601]
[1765466725780,0.00467924,3204.9,3204.8,0.156]
[1765466726577,0.00467924,3204.9,3204.8,3.3638]
[1765466726774,3.2078,3205.7,3205.6,0.15596]
[1765466726982,3.2078,3205.7,3204.9,1.4304]
[1765466726983,0.00385983,3206.0,3205.9,0.15594]
[1765466727181,0.00385983,3206.0,3205.9,3.36633832]
[1765466727681,0.00385983,3206.0,3205.9,0.15853832]
[1765466731986,0.00467924,3206.3,3206.2,0.15593]
[1765466732178,0.00467924,3206.3,3206.2,3.36373]
[1765466732488,0.00467924,3206.3,3206.2,0.15593]
[1765466732880,0.00792399,3206.3,3206.2,0.15593]
[1765466733481,3.2078,3207.4,3207.3,0.15588]
[1765466733878,3.2078,3208.7,3207.3,3.2078]
[1765466734083,3.2078,3208.7,3208.0,0.15584]
[1765466734290,3.2078,3208.3,3208.0,0.15584]
[1765466734482,3.21092784,3208.3,3208.0,0.15584]
[1765466734681,9.21092784,3208.3,3207.2,1.4304]
[1765466734890,3.2078,3207.8,3207.7,0.15586]
[1765466735091,3.2078,3208.2,3207.4,3.2078]
[1765466735285,0.00312784,3208.3,3208.2,0.15583]
[1765466735490,0.00312784,3208.3,3208.2,0.15813035]
[1765466735786,0.00312784,3208.3,3207.1,3.2078]
[1765466735992,3.2078,3207.9,3207.6,0.15586]
[1765466736394,6.0,3207.8,3207.1,3.2078]
[1765466736588,6.0,3207.8,3207.0,0.15589]
[1765466736589,3.2078,3207.5,3207.0,0.15589]
[1765466736791,3.2078,3207.5,3207.0,0.15867344]
[1765466736986,3.2078,3207.2,3207.1,0.15589]
[1765466737390,3.2078,3207.7,3207.3,0.15588]
[1765466737592,3.2078,3207.4,3207.3,0.15588]
[1765466737892,3.2078,3207.8,3207.4,0.15587]
[1765466738193,3.21092784,3208.3,3207.7,3.2078]
[1765466738498,3.21092784,3208.3,3207.2,1.4304]
[1765466738499,0.00312784,3208.3,3208.1,3.2078]
[1765466738695,0.00312784,3208.3,3207.7,3.2078]
[1765466739492,3.21092784,3208.3,3208.1,0.15583]
[1765466739998,3.21092784,3208.3,3207.3,3.36367]
[1765466740199,3.2078,3207.7,3207.4,0.15587]
[1765466740495,3.2078,3207.7,3207.0,0.00278344]
[1765466740893,3.2078,3208.1,3207.6,0.15586]
[1765466741093,3.2078,3208.1,3208.0,0.15584]
[1765466741486,0.00312784,3208.3,3208.2,0.15583]
[1765466744191,0.00312784,3208.3,3207.7,0.15586]
[1765466744391,0.00312784,3208.3,3208.0,0.15584]
[1765466746296,3.21092784,3208.3,3208.0,0.15584]
[1765466746497,3.21092784,3208.3,3208.1,0.15584]
[1765466746698,1.1447,3207.4,3207.0,0.00278344]
[1765466746994,3.2078,3207.4,3206.6,0.15591]
[1765466747187,3.2078,3206.7,3206.6,0.15591]
[1765466747591,3.2078,3206.7,3205.8,1.4304]
[1765466747802,3.2078,3206.1,3205.9,3.20778122]
[1765466748109,3.2078,3206.1,3206.0,0.15594]
[1765466748697,3.2078,3206.1,3205.8,0.00277954]
[1765466749798,3.2078,3205.9,3205.8,0.00277954]
[1765466749997,0.00339175,3205.9,3205.8,3.36652954]
[1765466750191,0.00339175,3205.9,3205.8,3.36651076]
[1765466750501,0.8508,3205.6,3204.4,3.2078]
[1765466750697,0.8508,3205.6,3203.8,0.15605]
[1765466750698,3.76789064,3204.5,3203.8,0.15605]
[1765466750893,3.2078,3204.2,3203.3,3.20778122]
[1765466751099,3.76789064,3203.6,3202.4,4.6664]
[1765466751307,3.2078,3202.9,3202.5,3.20778122]
[1765466751498,0.00239193,3202.9,3202.5,3.21029293]
[1765466751804,0.00239193,3202.9,3201.6,1.4586]
[1765466752003,3.76789064,3202.2,3200.8,1.4586]
[1765466752204,3.76789064,3201.9,3200.9,3.20778122]
[1765466752609,3.76789064,3201.3,3199.9,0.15624]
[1765466752802,3.2078,3200.5,3200.1,3.20778122]
[1765466753002,3.21049213,3200.5,3200.2,0.15622]
[1765466753198,0.00467924,3201.0,3200.3,3.36400122]
[1765466753398,3.21247924,3201.0,3200.3,0.15622]
[1765466753603,0.00467924,3201.0,3200.4,0.15621]
[1765466753906,0.00467924,3201.0,3200.7,3.364]
[1765466754404,0.00794505,3201.0,3200.7,3.364]
[1765466755103,0.00794505,3201.0,3200.8,0.15619]
[1765466755303,0.00794505,3201.0,3200.9,0.15619]
[1765466758209,3.2078,3202.0,3201.6,0.15615]
[1765466758511,3.2078,3202.0,3201.3,4.6664]
[1765466759009,3.2078,3202.4,3201.8,0.15614]
[1765466759210,3.21646301,3202.4,3201.8,0.16082706]
[1765466759706,3.21646301,3202.4,3201.8,0.00468706]
[1765466759914,3.21646301,3202.4,3202.3,0.15612]
[1765466760213,5.23899064,3204.0,3202.4,1.4586]
[1765466760409,3.2078,3203.8,3203.1,3.2078]
[1765466760610,3.2078,3203.8,3203.1,0.15608]
[1765466760808,3.2078,3203.8,3203.1,3.2078]
[1765466761114,0.0086189,3203.8,3203.6,0.15606]
[1765466761409,0.0086189,3203.8,3202.7,0.1561]
[1765466761611,0.0086189,3203.8,3203.0,3.2078]
[1765466762309,3.2078,3203.5,3203.2,0.15608]
[1765466762505,0.0086189,3203.8,3203.2,0.15608]
[1765466762709,0.0086189,3203.8,3203.5,3.2078]
[1765466763305,0.0086189,3203.8,3203.7,0.15605]
[1765466767619,3.2078,3204.9,3204.0,1.4586]
[1765466767914,3.2078,3205.3,3204.9,0.15599]
[1765466768516,3.21055066,3205.3,3204.9,0.15874966]
[1765466769118,1.2802,3204.8,3204.4,3.2078]
[1765466769323,3.76789064,3204.5,3203.6,0.15606]
[1765466769612,3.2078,3204.0,3203.6,0.15606]
[1765466769816,3.2078,3204.0,3203.4,0.00468706]
[1765466769817,3.76789064,3203.9,3203.4,0.00468706]
[1765466770017,3.2078,3203.5,3203.4,0.00468706]
[1765466770322,3.2078,3203.5,3203.4,0.00833228]
[1765466770613,3.2078,3203.5,3202.9,3.2078]
[1765466770614,9.2078,3203.5,3202.9,3.2078]
[1765466770814,6.97569064,3203.0,3202.0,3.2078]
[1765466771422,3.2078,3202.5,3202.0,3.2078]
[1765466771718,3.76789064,3202.4,3202.0,3.21069618]
[1765466771922,3.2078,3202.1,3202.0,0.00289618]
[1765466772220,3.2078,3202.1,3201.4,3.36396]
[1765466772418,3.76789064,3201.8,3201.4,3.2078]
[1765466772919,3.76789064,3201.8,3200.0,3.0202]
[1765466773122,3.2078,3200.7,3200.3,0.15622]
[1765466773321,3.76789064,3200.6,3200.2,0.00468706]
[1765466773523,3.2078,3200.3,3199.4,0.15626]
[1765466773828,0.00468706,3200.8,3198.6,0.1563]
[1765466773829,3.2078,3199.6,3198.6,0.1563]
[1765466774118,3.2078,3199.1,3198.6,0.1563]
[1765466774820,3.21002381,3199.1,3198.6,0.1591347]
[1765466775718,2.73809795,3199.1,3198.6,6.0028347]
[1765466775922,3.2078,3200.6,3198.7,6.54360445]
[1765466776120,3.76789064,3200.7,3200.0,0.15623]
[1765466776322,3.2078,3200.6,3200.0,0.15623]
[1765466776925,3.21613457,3200.6,3200.0,0.16091706]
[1765466777527,0.00833457,3200.6,3200.2,3.2078]
[1765466777719,0.00833457,3200.6,3200.5,0.15621]
[1765466778026,3.21613457,3200.6,3200.5,0.15621]
[1765466778221,9.21613457,3200.6,3200.0,0.00468706]
[1765466778417,3.21613457,3200.6,3200.0,0.00468706]
[1765466779221,0.00833457,3200.6,3200.3,3.36401]
[1765466779619,0.00833457,3200.6,3200.3,0.15621]
[1765466779821,3.2078,3200.4,3200.3,0.15621]
[1765466780025,8.83139064,3200.4,3199.9,3.2078]
[1765466781828,6.97569064,3200.4,3200.0,0.15623]
[1765466782824,8.64939064,3200.4,3200.0,0.15623]
[1765466783026,8.64939064,3200.4,3199.3,3.2078]
[1765466783328,3.76789064,3199.7,3199.3,3.2078]
[1765466783828,3.76789064,3199.7,3199.2,0.15627]
[1765466783829,3.2078,3199.4,3199.2,0.15627]
[1765466784332,3.2078,3199.4,3198.6,0.0028347]
[1765466784525,6.97569064,3199.0,3198.6,0.0028347]
[1765466786935,3.2078,3199.4,3198.6,1.8148347]
[1765466787324,3.2078,3199.4,3198.9,3.2078]
[1765466787625,3.2078,3199.4,3198.6,1.8148347]
[1765466787822,3.2078,3199.4,3198.9,3.2078]
[1765466788431,3.2078,3199.4,3199.1,0.15627]
[1765466789234,3.2078,3199.4,3198.6,3.2106347]
[1765466789428,3.2078,3199.4,3199.1,0.15627]
[1765466790131,3.2078,3199.4,3198.6,0.0028347]
[1765466790320,3.2078,3198.9,3198.6,0.0028347]
[1765466790724,3.76789064,3199.6,3198.6,0.0028347]
[1765466790922,3.2078,3198.9,3198.6,0.0028347]
[1765466792129,9.2078,3198.9,3197.4,3.2078]
[1765466792332,6.97569064,3197.9,3197.4,3.2078]
[1765466793031,0.00468706,3198.5,3197.8,3.2078]
[1765466793233,0.00738596,3198.5,3198.4,0.15631]
[1765466794329,0.00738596,3198.5,3197.9,3.2078]
[1765466794635,0.00738596,3198.5,3198.1,0.15632]
[1765466794827,3.7752766,3198.5,3198.1,0.15632]
[1765466795135,1.8243,3198.4,3197.8,0.00246511]
[1765466795335,3.2078,3198.0,3197.8,0.00246511]
[1765466796331,3.76789064,3197.9,3197.8,0.00246511]
[1765466796834,9.11356127,3197.9,3196.9,0.15638]
[1765466797037,3.2078,3197.4,3196.9,0.15638]
[1765466797834,3.2078,3197.4,3196.9,0.15946659]
[1765466798434,3.11356127,3197.2,3196.9,0.00308659]
[1765466799029,3.2078,3197.0,3196.2,0.15642]
[1765466799226,1.2587,3197.6,3196.2,0.15642]
[1765466799227,3.2078,3196.4,3196.2,0.15642]
[1765466799628,3.11356127,3196.5,3196.2,0.15642]
[1765466799834,3.2078,3196.4,3196.2,0.15642]
[1765466800043,3.2078,3196.4,3196.2,0.00397531]